[Event "*** Titled Tuesday Blitz"]
[Site "Chess.com"]
[Date "2021.04.20"]
[Round "3"]
[White "frenchpin"]
[Black "I_Enchev"]
[Result "0-1"]
[WhiteElo "2408"]
[BlackElo "2612"]
[TimeControl "180+1"]
[EndTime "10:25:28 PDT"]
[Termination "I_Enchev won by resignation"]

1. e4 {[%clk 0:03:00.9]} 1... c5 {[%clk 0:03:00.3]} 2. Nf3 {[%clk 0:03:00.1]}
2... a6 {[%clk 0:03:00.5]} 3. c3 {[%clk 0:03:00]} 3... e6 {[%clk 0:02:59.6]} 4.
d4 {[%clk 0:02:59.6]} 4... d5 {[%clk 0:03:00.2]} 5. exd5 {[%clk 0:02:58.8]} 5...
exd5 {[%clk 0:02:59.8]} 6. dxc5 {[%clk 0:02:58]} 6... Bxc5 {[%clk 0:03:00.7]} 7.
Be2 {[%clk 0:02:57.5]} 7... Nf6 {[%clk 0:02:58.1]} 8. O-O {[%clk 0:02:57.6]}
8... O-O {[%clk 0:02:57.6]} 9. Nbd2 {[%clk 0:02:58.1]} 9... Nc6 {[%clk
0:02:55.3]} 10. Nb3 {[%clk 0:02:58.3]} 10... Ba7 {[%clk 0:02:54.6]} 11. Nbd4
{[%clk 0:02:50.1]} 11... Ne4 {[%clk 0:02:53.9]} 12. Be3 {[%clk 0:02:48.8]} 12...
Re8 {[%clk 0:02:44.8]} 13. Re1 {[%clk 0:02:47.9]} 13... Ne7 {[%clk 0:02:41.6]}
14. Ne5 {[%clk 0:02:28.8]} 14... Bb8 {[%clk 0:02:38]} 15. Ndf3 {[%clk
0:02:17.3]} 15... Nf5 {[%clk 0:02:34]} 16. Bf4 {[%clk 0:02:05.4]} 16... g5
{[%clk 0:02:27.2]} 17. Nxg5 {[%clk 0:01:31.5]} 17... Nxg5 {[%clk 0:02:14]} 18.
Bxg5 {[%clk 0:01:22.3]} 18... Qxg5 {[%clk 0:02:13]} 19. Nxf7 {[%clk 0:01:22.5]}
19... Qh4 {[%clk 0:02:07]} 20. g3 {[%clk 0:01:03.7]} 20... Qf6 {[%clk
0:01:59.8]} 21. Bh5 {[%clk 0:00:50.2]} 21... Rxe1+ {[%clk 0:01:59.3]} 22. Qxe1
{[%clk 0:00:49]} 22... Ng7 {[%clk 0:01:46.8]} 23. g4 {[%clk 0:00:19.8]} 23...
Nxh5 {[%clk 0:01:44.7]} 24. Qe8+ {[%clk 0:00:19.1]} 24... Kg7 {[%clk 0:01:45]}
25. g5 {[%clk 0:00:18.2]} 25... Qxf7 {[%clk 0:01:42.7]} 26. Qxc8 {[%clk
0:00:15]} 26... Bxh2+ {[%clk 0:01:41.9]} 0-1

[Event "*** Titled Tuesday Blitz"]
[Site "Chess.com"]
[Date "2021.04.20"]
[Round "3"]
[White "MaxLeto"]
[Black "dhaessel"]
[Result "1-0"]
[WhiteElo "2328"]
[BlackElo "2087"]
[TimeControl "180+1"]
[EndTime "10:25:30 PDT"]
[Termination "MaxLeto won on time"]

1. g4 {[%clk 0:02:58.7]} 1... d5 {[%clk 0:02:56.1]} 2. Bg2 {[%clk 0:02:47.7]}
2... Nc6 {[%clk 0:02:39.2]} 3. g5 {[%clk 0:02:41.7]} 3... h6 {[%clk 0:02:32.4]}
4. g6 {[%clk 0:02:34.2]} 4... fxg6 {[%clk 0:02:29.4]} 5. d4 {[%clk 0:02:35.1]}
5... Nf6 {[%clk 0:02:20.4]} 6. Nf3 {[%clk 0:02:34.5]} 6... e6 {[%clk 0:02:01.4]}
7. c4 {[%clk 0:02:27.1]} 7... Bb4+ {[%clk 0:01:39]} 8. Bd2 {[%clk 0:02:24.2]}
8... O-O {[%clk 0:01:24.5]} 9. Bxb4 {[%clk 0:02:16.8]} 9... Nxb4 {[%clk
0:01:24.1]} 10. Qb3 {[%clk 0:02:17.7]} 10... Nc6 {[%clk 0:01:11.9]} 11. Nbd2
{[%clk 0:02:18.2]} 11... Kh7 {[%clk 0:00:51.9]} 12. O-O-O {[%clk 0:02:18.1]}
12... a5 {[%clk 0:00:49.7]} 13. h4 {[%clk 0:02:17.6]} 13... Nb4 {[%clk
0:00:41.5]} 14. Kb1 {[%clk 0:02:08.6]} 14... Qe7 {[%clk 0:00:30.3]} 15. c5
{[%clk 0:02:03.5]} 15... Nc6 {[%clk 0:00:26.5]} 16. Rdg1 {[%clk 0:01:56.7]}
16... a4 {[%clk 0:00:26.3]} 17. Qd3 {[%clk 0:01:55.9]} 17... Qe8 {[%clk
0:00:16.8]} 18. Bh3 {[%clk 0:01:54]} 18... Nb4 {[%clk 0:00:15]} 19. Qc3 {[%clk
0:01:52.7]} 19... Nc6 {[%clk 0:00:14.2]} 20. Rg2 {[%clk 0:01:52.7]} 20... e5
{[%clk 0:00:12.6]} 21. Nxe5 {[%clk 0:01:50.5]} 21... Nxe5 {[%clk 0:00:11.4]} 22.
dxe5 {[%clk 0:01:51.4]} 22... Ne4 {[%clk 0:00:08.9]} 23. Nxe4 {[%clk 0:01:50.8]}
23... dxe4 {[%clk 0:00:08.9]} 24. Bxc8 {[%clk 0:01:49.5]} 24... Rxc8 {[%clk
0:00:08.3]} 25. Rhg1 {[%clk 0:01:50.4]} 25... Qe7 {[%clk 0:00:03.8]} 26. Rxg6
{[%clk 0:01:50.1]} 26... Rxf2 {[%clk 0:00:02.8]} 27. e6 {[%clk 0:01:50.9]} 1-0

[Event "*** Titled Tuesday Blitz"]
[Site "Chess.com"]
[Date "2021.04.20"]
[Round "3"]
[White "GameOverBro"]
[Black "GadimbayliA"]
[Result "0-1"]
[WhiteElo "2548"]
[BlackElo "2762"]
[TimeControl "180+1"]
[EndTime "10:25:32 PDT"]
[Termination "GadimbayliA won by resignation"]

1. e4 {[%clk 0:03:00.9]} 1... e5 {[%clk 0:02:59.5]} 2. Nf3 {[%clk 0:03:01.1]}
2... d5 {[%clk 0:02:59.5]} 3. exd5 {[%clk 0:03:00.4]} 3... e4 {[%clk 0:03:00.4]}
4. Qe2 {[%clk 0:03:00.3]} 4... Nf6 {[%clk 0:03:00.3]} 5. Nc3 {[%clk 0:03:00.3]}
5... Be7 {[%clk 0:03:00.4]} 6. Nxe4 {[%clk 0:03:00.2]} 6... O-O {[%clk 0:03:01]}
7. Nxf6+ {[%clk 0:02:58.7]} 7... Bxf6 {[%clk 0:03:01.9]} 8. Qd1 {[%clk
0:02:59.1]} 8... Qxd5 {[%clk 0:03:00.5]} 9. Be2 {[%clk 0:02:58.9]} 9... Nc6
{[%clk 0:03:01.1]} 10. O-O {[%clk 0:02:58.5]} 10... Bg4 {[%clk 0:03:01.7]} 11.
d3 {[%clk 0:02:57.1]} 11... Rad8 {[%clk 0:03:02]} 12. c3 {[%clk 0:02:53]} 12...
Bxf3 {[%clk 0:02:49.3]} 13. Bxf3 {[%clk 0:02:52.5]} 13... Qxd3 {[%clk
0:02:49.9]} 14. Qxd3 {[%clk 0:02:52.4]} 14... Rxd3 {[%clk 0:02:50.8]} 15. Bxc6
{[%clk 0:02:31.9]} 15... bxc6 {[%clk 0:02:51.7]} 16. Be3 {[%clk 0:02:31.9]}
16... Rb8 {[%clk 0:02:51]} 17. Rab1 {[%clk 0:02:30.1]} 17... a5 {[%clk
0:02:51.1]} 18. Rfc1 {[%clk 0:02:23.4]} 18... a4 {[%clk 0:02:48.4]} 19. a3
{[%clk 0:02:22.5]} 19... Rb3 {[%clk 0:02:47.4]} 20. Kf1 {[%clk 0:02:21]} 20...
Rd5 {[%clk 0:02:45.9]} 21. c4 {[%clk 0:01:51.6]} 21... Rd8 {[%clk 0:02:40.9]}
22. Rc2 {[%clk 0:01:42.2]} 22... Rdb8 {[%clk 0:02:35.6]} 23. Bc5 {[%clk
0:01:38]} 23... Bxb2 {[%clk 0:02:29.4]} 24. Rd1 {[%clk 0:00:48.3]} 24... Bxa3
{[%clk 0:02:21.1]} 25. Bxa3 {[%clk 0:00:48.2]} 25... Rxa3 {[%clk 0:02:22]} 26.
Rd7 {[%clk 0:00:47.3]} 26... h6 {[%clk 0:02:10.6]} 27. Rxc7 {[%clk 0:00:46.8]}
27... Ra8 {[%clk 0:02:07.3]} 28. Rxc6 {[%clk 0:00:40]} 28... Ra1+ {[%clk
0:02:06.9]} 29. Ke2 {[%clk 0:00:39.6]} 29... a3 {[%clk 0:02:07.6]} 30. Kf3
{[%clk 0:00:18.3]} 30... a2 {[%clk 0:02:06.3]} 31. c5 {[%clk 0:00:13.3]} 31...
Rb1 {[%clk 0:02:05.4]} 32. Rxa2 {[%clk 0:00:11.9]} 32... Rxa2 {[%clk 0:02:06.3]}
33. Rc8+ {[%clk 0:00:11.9]} 33... Kh7 {[%clk 0:02:05.8]} 34. c6 {[%clk
0:00:12.1]} 34... Rb3+ {[%clk 0:02:06.5]} 35. Ke4 {[%clk 0:00:11.7]} 35... Rxf2
{[%clk 0:02:06.2]} 36. c7 {[%clk 0:00:10]} 36... Rc3 {[%clk 0:02:06.2]} 0-1

[Event "*** Titled Tuesday Blitz"]
[Site "Chess.com"]
[Date "2021.04.20"]
[Round "3"]
[White "mjray79"]
[Black "TheRealPeakyBlinder"]
[Result "1-0"]
[WhiteElo "2434"]
[BlackElo "2631"]
[TimeControl "180+1"]
[EndTime "10:25:32 PDT"]
[Termination "mjray79 won by resignation"]

1. d4 {[%clk 0:03:00.9]} 1... e6 {[%clk 0:02:56.8]} 2. g3 {[%clk 0:02:59.8]}
2... f5 {[%clk 0:02:55.7]} 3. Bg2 {[%clk 0:03:00]} 3... Nf6 {[%clk 0:02:56]} 4.
c4 {[%clk 0:03:00.4]} 4... Be7 {[%clk 0:02:55.2]} 5. Nf3 {[%clk 0:03:00.8]} 5...
d5 {[%clk 0:02:55.6]} 6. O-O {[%clk 0:02:59.9]} 6... Ne4 {[%clk 0:02:55.6]} 7.
Qc2 {[%clk 0:02:59.3]} 7... Nc6 {[%clk 0:02:54.3]} 8. Nc3 {[%clk 0:02:57.9]}
8... h5 {[%clk 0:02:49.8]} 9. h4 {[%clk 0:02:51.7]} 9... g5 {[%clk 0:02:41.9]}
10. cxd5 {[%clk 0:02:22.9]} 10... exd5 {[%clk 0:02:38.8]} 11. Nxe4 {[%clk
0:02:23]} 11... fxe4 {[%clk 0:01:02.8]} 12. Nxg5 {[%clk 0:02:23.2]} 12... Nxd4
{[%clk 0:01:01.1]} 13. Qa4+ {[%clk 0:02:21.9]} 13... Nc6 {[%clk 0:01:01.4]} 14.
Rd1 {[%clk 0:02:17.3]} 14... Bg4 {[%clk 0:00:41.2]} 15. Bxe4 {[%clk 0:02:11]}
15... dxe4 {[%clk 0:00:14.6]} 16. Rxd8+ {[%clk 0:02:11.9]} 16... Rxd8 {[%clk
0:00:14.5]} 17. Qxe4 {[%clk 0:02:12.8]} 17... Rf8 {[%clk 0:00:12.3]} 18. Bf4
{[%clk 0:02:08.4]} 18... Kd7 {[%clk 0:00:12.3]} 19. Rc1 {[%clk 0:02:03.6]} 19...
Kc8 {[%clk 0:00:12.7]} 20. Rxc6 {[%clk 0:02:01.1]} 20... bxc6 {[%clk 0:00:12.7]}
21. Qxe7 {[%clk 0:02:01.2]} 21... Bd7 {[%clk 0:00:08.3]} 22. Bxc7 {[%clk
0:01:52.6]} 22... Kxc7 {[%clk 0:00:07.9]} 23. Ne6+ {[%clk 0:01:52.5]} 23... Kc8
{[%clk 0:00:08.4]} 24. Nxf8 {[%clk 0:01:52.4]} 24... Bg4 {[%clk 0:00:06.3]} 25.
Qxa7 {[%clk 0:01:49]} 25... Bf3 {[%clk 0:00:03.3]} 26. exf3 {[%clk 0:01:45.5]}
1-0

[Event "*** Titled Tuesday Blitz"]
[Site "Chess.com"]
[Date "2021.04.20"]
[Round "3"]
[White "Promacherr"]
[Black "Trickov"]
[Result "1-0"]
[WhiteElo "2613"]
[BlackElo "2408"]
[TimeControl "180+1"]
[EndTime "10:25:43 PDT"]
[Termination "Promacherr won by checkmate"]

1. e4 {[%clk 0:03:00.9]} 1... c5 {[%clk 0:02:59.6]} 2. Nc3 {[%clk 0:03:00.9]}
2... Nc6 {[%clk 0:02:58.7]} 3. Nf3 {[%clk 0:03:01.5]} 3... g6 {[%clk 0:02:56.8]}
4. d4 {[%clk 0:03:00.3]} 4... cxd4 {[%clk 0:02:56.4]} 5. Nxd4 {[%clk 0:03:01.2]}
5... Bg7 {[%clk 0:02:56.8]} 6. Nb3 {[%clk 0:03:01.4]} 6... Nf6 {[%clk
0:02:54.3]} 7. Be2 {[%clk 0:03:01.9]} 7... O-O {[%clk 0:02:53.9]} 8. O-O {[%clk
0:03:02.1]} 8... a6 {[%clk 0:02:53.9]} 9. a4 {[%clk 0:03:02]} 9... d6 {[%clk
0:02:52.4]} 10. Be3 {[%clk 0:03:02.3]} 10... e5 {[%clk 0:02:51.1]} 11. f4 {[%clk
0:03:02.4]} 11... exf4 {[%clk 0:02:48.3]} 12. Bxf4 {[%clk 0:03:03.3]} 12... Ne5
{[%clk 0:02:48.4]} 13. Bg5 {[%clk 0:02:59.4]} 13... h6 {[%clk 0:02:47.5]} 14.
Bh4 {[%clk 0:02:59.6]} 14... g5 {[%clk 0:02:47.2]} 15. Bg3 {[%clk 0:02:59.5]}
15... Be6 {[%clk 0:02:47.3]} 16. Nd4 {[%clk 0:02:59]} 16... Qc7 {[%clk
0:02:45.5]} 17. Kh1 {[%clk 0:02:57.6]} 17... Rac8 {[%clk 0:02:44.8]} 18. a5
{[%clk 0:02:58.1]} 18... Rfe8 {[%clk 0:02:44]} 19. h4 {[%clk 0:02:49.6]} 19...
Ng6 {[%clk 0:02:22.1]} 20. hxg5 {[%clk 0:02:47.5]} 20... hxg5 {[%clk 0:02:21.8]}
21. Nf5 {[%clk 0:02:42.1]} 21... Bxf5 {[%clk 0:02:20.7]} 22. Rxf5 {[%clk
0:02:42.9]} 22... Nxe4 {[%clk 0:02:09.2]} 23. Nxe4 {[%clk 0:02:41.9]} 23... Rxe4
{[%clk 0:02:09]} 24. Bd3 {[%clk 0:02:42.3]} 24... Re3 {[%clk 0:01:43]} 25. Qg4
{[%clk 0:02:35.1]} 25... Ne5 {[%clk 0:01:18.7]} 26. Qxg5 {[%clk 0:02:28.3]}
26... Rxg3 {[%clk 0:00:44.5]} 27. Qxg3 {[%clk 0:02:29.2]} 27... Nxd3 {[%clk
0:00:40.8]} 28. cxd3 {[%clk 0:02:26.4]} 28... Re8 {[%clk 0:00:29.1]} 29. Raf1
{[%clk 0:02:24.2]} 29... Re6 {[%clk 0:00:27.2]} 30. Rh5 {[%clk 0:02:11.2]} 30...
Rg6 {[%clk 0:00:26.5]} 31. Qf3 {[%clk 0:02:08.3]} 31... Qe7 {[%clk 0:00:23.9]}
32. Qf5 {[%clk 0:02:01.8]} 32... Be5 {[%clk 0:00:17.1]} 33. Re1 {[%clk
0:01:57.1]} 33... Qd8 {[%clk 0:00:10.3]} 34. Rf1 {[%clk 0:01:51.4]} 34... Qe7
{[%clk 0:00:09.9]} 35. Qc8+ {[%clk 0:01:51.4]} 35... Kg7 {[%clk 0:00:09.6]} 36.
Qh8# {[%clk 0:01:51.3]} 1-0

[Event "*** Titled Tuesday Blitz"]
[Site "Chess.com"]
[Date "2021.04.20"]
[Round "3"]
[White "pirulillo"]
[Black "elohunter1999"]
[Result "0-1"]
[WhiteElo "2215"]
[BlackElo "2491"]
[TimeControl "180+1"]
[EndTime "10:25:49 PDT"]
[Termination "elohunter1999 won by checkmate"]

1. e4 {[%clk 0:02:51.2]} 1... c5 {[%clk 0:02:59.2]} 2. Nf3 {[%clk 0:02:50.6]}
2... Nc6 {[%clk 0:02:59.1]} 3. Bb5 {[%clk 0:02:49.9]} 3... e6 {[%clk 0:02:58.3]}
4. O-O {[%clk 0:02:48.1]} 4... Nge7 {[%clk 0:02:58.3]} 5. b3 {[%clk 0:02:48]}
5... a6 {[%clk 0:02:57.5]} 6. Bxc6 {[%clk 0:02:48.6]} 6... Nxc6 {[%clk
0:02:58.4]} 7. Bb2 {[%clk 0:02:49.5]} 7... d6 {[%clk 0:02:51.1]} 8. d4 {[%clk
0:02:48.2]} 8... cxd4 {[%clk 0:02:45.3]} 9. Nxd4 {[%clk 0:02:49.1]} 9... Bd7
{[%clk 0:02:40]} 10. c4 {[%clk 0:02:46.9]} 10... Be7 {[%clk 0:02:37]} 11. Nxc6
{[%clk 0:01:50]} 11... Bxc6 {[%clk 0:02:36.8]} 12. Nd2 {[%clk 0:01:50.9]} 12...
O-O {[%clk 0:02:34.1]} 13. Qg4 {[%clk 0:01:46.6]} 13... Bf6 {[%clk 0:02:33.1]}
14. Bxf6 {[%clk 0:01:35.3]} 14... Qxf6 {[%clk 0:02:34]} 15. Rfd1 {[%clk
0:01:32.5]} 15... b5 {[%clk 0:02:30.3]} 16. Qf3 {[%clk 0:01:21.2]} 16... Qe5
{[%clk 0:02:17.3]} 17. Qe3 {[%clk 0:01:17.2]} 17... Rfd8 {[%clk 0:02:10.1]} 18.
f4 {[%clk 0:01:16.4]} 18... Qf6 {[%clk 0:02:09.9]} 19. Nf3 {[%clk 0:01:02.7]}
19... bxc4 {[%clk 0:02:07.3]} 20. e5 {[%clk 0:01:02.3]} 20... Qe7 {[%clk
0:02:00.5]} 21. exd6 {[%clk 0:00:56.4]} 21... Rxd6 {[%clk 0:01:59.8]} 22. Ne5
{[%clk 0:00:56]} 22... cxb3 {[%clk 0:01:50.7]} 23. axb3 {[%clk 0:00:50.3]} 23...
Rxd1+ {[%clk 0:01:48.3]} 24. Rxd1 {[%clk 0:00:49.2]} 24... Bd5 {[%clk
0:01:49.2]} 25. Qb6 {[%clk 0:00:33.5]} 25... h6 {[%clk 0:01:44.1]} 26. Ra1
{[%clk 0:00:31.3]} 26... Rc8 {[%clk 0:01:28.2]} 27. Qxa6 {[%clk 0:00:24.3]}
27... Rc2 {[%clk 0:01:27.2]} 28. Ra2 {[%clk 0:00:17.3]} 28... Qc5+ {[%clk
0:01:26.6]} 29. Kf1 {[%clk 0:00:16]} 29... Qf2# {[%clk 0:01:26.3]} 0-1

[Event "*** Titled Tuesday Blitz"]
[Site "Chess.com"]
[Date "2021.04.20"]
[Round "3"]
[White "Didici"]
[Black "Sjakkerntobi"]
[Result "1-0"]
[WhiteElo "2598"]
[BlackElo "2390"]
[TimeControl "180+1"]
[EndTime "10:25:51 PDT"]
[Termination "Didici won on time"]

1. e4 {[%clk 0:03:00.9]} 1... e6 {[%clk 0:02:59.9]} 2. b3 {[%clk 0:02:55.5]}
2... d5 {[%clk 0:02:59.3]} 3. Bb2 {[%clk 0:02:56.4]} 3... dxe4 {[%clk
0:02:59.3]} 4. Nc3 {[%clk 0:02:47.7]} 4... Nf6 {[%clk 0:02:58.9]} 5. Qe2 {[%clk
0:02:45.7]} 5... c5 {[%clk 0:02:46.3]} 6. Nxe4 {[%clk 0:02:41.7]} 6... Nxe4
{[%clk 0:02:47.2]} 7. Qxe4 {[%clk 0:02:42.5]} 7... Nc6 {[%clk 0:02:48.1]} 8. Nf3
{[%clk 0:02:35.2]} 8... Qd5 {[%clk 0:02:37.6]} 9. Qe3 {[%clk 0:02:15.2]} 9...
Bd7 {[%clk 0:02:01]} 10. O-O-O {[%clk 0:02:12.1]} 10... O-O-O {[%clk 0:02:00.4]}
11. Bc4 {[%clk 0:02:06.2]} 11... Qh5 {[%clk 0:01:59.6]} 12. h3 {[%clk 0:02:02]}
12... Be7 {[%clk 0:01:54]} 13. Bxg7 {[%clk 0:01:56.6]} 13... Rhg8 {[%clk
0:01:53.3]} 14. g4 {[%clk 0:01:56.3]} 14... Qg6 {[%clk 0:01:49.2]} 15. Bb2
{[%clk 0:01:54.6]} 15... Bf6 {[%clk 0:01:30.3]} 16. Ne5 {[%clk 0:01:47.9]} 16...
Nxe5 {[%clk 0:01:01.8]} 17. Bxe5 {[%clk 0:01:48.8]} 17... Be7 {[%clk 0:00:50.7]}
18. f4 {[%clk 0:01:47.8]} 18... Bc6 {[%clk 0:00:49.4]} 19. Rhf1 {[%clk
0:01:46.8]} 19... h5 {[%clk 0:00:41.7]} 20. g5 {[%clk 0:01:45.8]} 20... Qf5
{[%clk 0:00:37.7]} 21. d4 {[%clk 0:01:41.2]} 21... Qe4 {[%clk 0:00:32.2]} 22.
Qxe4 {[%clk 0:01:38.2]} 22... Bxe4 {[%clk 0:00:33.1]} 23. h4 {[%clk 0:01:36.8]}
23... Bf5 {[%clk 0:00:30.9]} 24. Kb2 {[%clk 0:01:34.6]} 24... a6 {[%clk
0:00:17.6]} 25. a4 {[%clk 0:01:33.8]} 25... cxd4 {[%clk 0:00:16.3]} 26. Bxd4
{[%clk 0:01:31.2]} 1-0

[Event "*** Titled Tuesday Blitz"]
[Site "Chess.com"]
[Date "2021.04.20"]
[Round "3"]
[White "scarabee43"]
[Black "Mikhal867"]
[Result "1-0"]
[WhiteElo "2654"]
[BlackElo "2434"]
[TimeControl "180+1"]
[EndTime "10:25:53 PDT"]
[Termination "scarabee43 won by checkmate"]

1. d4 {[%clk 0:03:00.9]} 1... g6 {[%clk 0:02:36.9]} 2. c4 {[%clk 0:03:01]} 2...
Bg7 {[%clk 0:02:35.7]} 3. Nc3 {[%clk 0:03:01.1]} 3... d6 {[%clk 0:02:35.7]} 4.
e4 {[%clk 0:03:00.4]} 4... Nf6 {[%clk 0:02:35.3]} 5. Nf3 {[%clk 0:03:00.9]} 5...
O-O {[%clk 0:02:34.7]} 6. Be2 {[%clk 0:03:01.5]} 6... e5 {[%clk 0:02:34.6]} 7.
O-O {[%clk 0:03:01.8]} 7... Nbd7 {[%clk 0:02:34.4]} 8. Be3 {[%clk 0:02:58.8]}
8... Ng4 {[%clk 0:02:32.9]} 9. Bg5 {[%clk 0:02:58.7]} 9... f6 {[%clk 0:02:33.2]}
10. Bd2 {[%clk 0:02:53]} 10... Nh6 {[%clk 0:02:23.3]} 11. Qc2 {[%clk 0:02:44.7]}
11... c6 {[%clk 0:02:22.2]} 12. Rad1 {[%clk 0:02:43.2]} 12... Qe7 {[%clk
0:02:18.1]} 13. Rfe1 {[%clk 0:02:40.6]} 13... g5 {[%clk 0:02:05.1]} 14. h3
{[%clk 0:02:28.3]} 14... Nf7 {[%clk 0:02:02]} 15. Bc1 {[%clk 0:02:20.1]} 15...
Nd8 {[%clk 0:01:58.9]} 16. Qd2 {[%clk 0:02:11.7]} 16... Ne6 {[%clk 0:01:56.2]}
17. dxe5 {[%clk 0:02:10.4]} 17... dxe5 {[%clk 0:01:55.7]} 18. Qd6 {[%clk
0:02:10.5]} 18... Qxd6 {[%clk 0:01:49.9]} 19. Rxd6 {[%clk 0:02:09.9]} 19... Ndc5
{[%clk 0:01:37.5]} 20. b4 {[%clk 0:02:07.7]} 20... Na6 {[%clk 0:01:36.9]} 21. b5
{[%clk 0:02:00.6]} 21... cxb5 {[%clk 0:01:34.8]} 22. cxb5 {[%clk 0:02:00.7]}
22... Nac5 {[%clk 0:01:32.5]} 23. Ba3 {[%clk 0:01:55.7]} 23... Kh8 {[%clk
0:01:24.6]} 24. Bc4 {[%clk 0:01:49.1]} 24... b6 {[%clk 0:01:22.1]} 25. Red1
{[%clk 0:01:42.2]} 25... Nf4 {[%clk 0:01:13]} 26. Bxc5 {[%clk 0:01:27]} 26...
bxc5 {[%clk 0:01:12.5]} 27. Nd5 {[%clk 0:01:22.2]} 27... g4 {[%clk 0:01:11.3]}
28. hxg4 {[%clk 0:01:20.2]} 28... Bxg4 {[%clk 0:01:10.8]} 29. Nxf4 {[%clk
0:01:20.8]} 29... exf4 {[%clk 0:01:07.8]} 30. R1d5 {[%clk 0:01:20.3]} 30... f5
{[%clk 0:01:05.2]} 31. e5 {[%clk 0:01:16.9]} 31... Rfc8 {[%clk 0:00:53.8]} 32.
Ng5 {[%clk 0:01:13.4]} 32... Bf8 {[%clk 0:00:50.6]} 33. Rd7 {[%clk 0:01:11.4]}
33... h6 {[%clk 0:00:47.7]} 34. Rh7+ {[%clk 0:01:10.8]} 34... Kg8 {[%clk
0:00:46.1]} 35. Rd8# {[%clk 0:01:09.2]} 1-0

[Event "*** Titled Tuesday Blitz"]
[Site "Chess.com"]
[Date "2021.04.20"]
[Round "3"]
[White "BashirliSaadat"]
[Black "Harald_Schmidt"]
[Result "0-1"]
[WhiteElo "2186"]
[BlackElo "2394"]
[TimeControl "180+1"]
[EndTime "10:25:58 PDT"]
[Termination "Harald_Schmidt won by resignation"]

1. e4 {[%clk 0:03:00.9]} 1... e5 {[%clk 0:02:57.5]} 2. Nf3 {[%clk 0:03:00.8]}
2... Nc6 {[%clk 0:02:57.4]} 3. Bc4 {[%clk 0:03:01.1]} 3... Nf6 {[%clk
0:02:57.1]} 4. d3 {[%clk 0:02:59.4]} 4... Be7 {[%clk 0:02:55.5]} 5. c3 {[%clk
0:02:59.7]} 5... O-O {[%clk 0:02:54.3]} 6. O-O {[%clk 0:03:00.2]} 6... d6 {[%clk
0:02:52.4]} 7. Re1 {[%clk 0:03:00]} 7... Be6 {[%clk 0:02:51.9]} 8. Bb3 {[%clk
0:02:59.6]} 8... a5 {[%clk 0:02:50.7]} 9. Nbd2 {[%clk 0:02:58.8]} 9... a4 {[%clk
0:02:48.9]} 10. Bc2 {[%clk 0:02:57.7]} 10... a3 {[%clk 0:02:46.2]} 11. b3 {[%clk
0:02:57.2]} 11... d5 {[%clk 0:02:44.8]} 12. c4 {[%clk 0:02:47.9]} 12... d4
{[%clk 0:02:31.7]} 13. Nf1 {[%clk 0:02:46.9]} 13... Bb4 {[%clk 0:02:29.8]} 14.
Bd2 {[%clk 0:02:45.8]} 14... Qe7 {[%clk 0:02:25.4]} 15. Ng3 {[%clk 0:02:43.1]}
15... Nd7 {[%clk 0:02:25]} 16. h3 {[%clk 0:02:38.3]} 16... g6 {[%clk 0:02:23.1]}
17. Re2 {[%clk 0:02:35]} 17... Bxd2 {[%clk 0:02:22.5]} 18. Qxd2 {[%clk
0:02:35.2]} 18... f6 {[%clk 0:02:20.9]} 19. h4 {[%clk 0:02:32.5]} 19... Kg7
{[%clk 0:02:18.2]} 20. h5 {[%clk 0:02:31.9]} 20... Nb4 {[%clk 0:02:17.5]} 21.
h6+ {[%clk 0:02:14.4]} 21... Kg8 {[%clk 0:02:17.2]} 22. Rae1 {[%clk 0:02:10.9]}
22... Nxa2 {[%clk 0:02:14.5]} 23. Ra1 {[%clk 0:01:56.8]} 23... Nb4 {[%clk
0:02:09.6]} 24. Bd1 {[%clk 0:01:49.6]} 24... a2 {[%clk 0:02:07.1]} 25. Re1
{[%clk 0:01:47.5]} 25... Ra3 {[%clk 0:02:04.4]} 26. Bc2 {[%clk 0:01:42.2]} 26...
Rfa8 {[%clk 0:02:02.1]} 27. Ne2 {[%clk 0:01:36.5]} 27... Nxc2 {[%clk 0:02:01.4]}
28. Qxc2 {[%clk 0:01:35.6]} 28... Qb4 {[%clk 0:02:01]} 29. Nd2 {[%clk 0:01:35]}
29... Nc5 {[%clk 0:01:59.4]} 30. Nc1 {[%clk 0:01:32.7]} 30... Qc3 {[%clk
0:01:58.1]} 31. Qxc3 {[%clk 0:01:19.1]} 31... dxc3 {[%clk 0:01:54.8]} 32. Nf1
{[%clk 0:01:15.7]} 32... b5 {[%clk 0:01:40]} 33. b4 {[%clk 0:01:09.5]} 33... Nb3
{[%clk 0:01:38.7]} 34. c5 {[%clk 0:00:56.4]} 34... Nxa1 {[%clk 0:01:36.4]} 35.
Ne3 {[%clk 0:00:53.4]} 35... Nb3 {[%clk 0:01:34.2]} 36. Nxb3 {[%clk 0:00:51.9]}
36... Rxb3 {[%clk 0:01:33.2]} 37. Nc2 {[%clk 0:00:51.5]} 37... Rb1 {[%clk
0:01:18.7]} 38. Na1 {[%clk 0:00:51.6]} 0-1

[Event "*** Titled Tuesday Blitz"]
[Site "Chess.com"]
[Date "2021.04.20"]
[Round "3"]
[White "Igor_Lysyj"]
[Black "Pelopidass"]
[Result "1-0"]
[WhiteElo "2777"]
[BlackElo "2557"]
[TimeControl "180+1"]
[EndTime "10:25:59 PDT"]
[Termination "Igor_Lysyj won by resignation"]

1. d4 {[%clk 0:02:58.9]} 1... Nf6 {[%clk 0:02:59.4]} 2. c4 {[%clk 0:02:58.4]}
2... g6 {[%clk 0:02:59.7]} 3. Nc3 {[%clk 0:02:57.4]} 3... Bg7 {[%clk 0:03:00.1]}
4. e4 {[%clk 0:02:54.8]} 4... d6 {[%clk 0:03:00.5]} 5. h3 {[%clk 0:02:54.3]}
5... O-O {[%clk 0:02:55.1]} 6. Be3 {[%clk 0:02:53.6]} 6... Nc6 {[%clk
0:02:53.7]} 7. Nf3 {[%clk 0:02:52.3]} 7... e5 {[%clk 0:02:50.4]} 8. d5 {[%clk
0:02:48.2]} 8... Nd4 {[%clk 0:02:47.4]} 9. Nxd4 {[%clk 0:02:39.5]} 9... exd4
{[%clk 0:02:48.3]} 10. Bxd4 {[%clk 0:02:39.9]} 10... Nxe4 {[%clk 0:02:46.6]} 11.
Bxg7 {[%clk 0:02:39.6]} 11... Re8 {[%clk 0:02:46]} 12. Be2 {[%clk 0:02:33.9]}
12... Kxg7 {[%clk 0:02:42.3]} 13. Qd4+ {[%clk 0:02:31.5]} 13... Qf6 {[%clk
0:02:35]} 14. Qxf6+ {[%clk 0:02:30.2]} 14... Kxf6 {[%clk 0:02:35.9]} 15. Nb5
{[%clk 0:02:27.3]} 15... Re7 {[%clk 0:02:33.2]} 16. O-O {[%clk 0:02:22.3]} 16...
a6 {[%clk 0:02:26.5]} 17. Nd4 {[%clk 0:02:21.7]} 17... Bd7 {[%clk 0:02:19.8]}
18. Rfd1 {[%clk 0:02:19.7]} 18... Rae8 {[%clk 0:02:13.7]} 19. Bf1 {[%clk
0:02:19.5]} 19... h5 {[%clk 0:02:11.5]} 20. Rac1 {[%clk 0:02:16.1]} 20... b6
{[%clk 0:02:07.5]} 21. b4 {[%clk 0:02:10.1]} 21... g5 {[%clk 0:01:45.4]} 22. Rd3
{[%clk 0:02:08.1]} 22... g4 {[%clk 0:01:38.7]} 23. h4 {[%clk 0:02:05.3]} 23...
Bf5 {[%clk 0:01:17.6]} 24. Nc6 {[%clk 0:01:34.9]} 24... Rd7 {[%clk 0:01:10.6]}
25. Re3 {[%clk 0:01:33.5]} 25... Rg8 {[%clk 0:01:02.8]} 26. Bd3 {[%clk
0:01:23.4]} 26... Nd2 {[%clk 0:00:50.1]} 27. Bxf5 {[%clk 0:01:19]} 27... Kxf5
{[%clk 0:00:51]} 28. Nd4+ {[%clk 0:00:58.3]} 28... Kg6 {[%clk 0:00:43.4]} 29.
Rc2 {[%clk 0:00:56.7]} 1-0